[Event "Titled Tuesday Blitz January 25 2022"]
[White "Noboa Silva, Kevin"]
[Black "Gaehwiler, Gabriel"]
[WhiteFideId "3618471"]
[BlackFideId "1314530"]
[WhiteElo "2161"]
[BlackElo "2383"]
[Result "0-1"]
[Round "09"]
[TimeControl "180+1"]
[Date "2022.01.26"]
[WhiteClock "0:00:06"]
[BlackClock "0:00:19"]

1. d4 {[%clk 0:03:00]}  Nf6 {[%clk 0:02:59]} 2. c4 {[%clk 0:02:59]}  g6 {[%clk 0:03:00]} 3. Nc3 {[%clk 0:02:59]}  Bg7 {[%clk 0:03:00]} 4. e4 {[%clk 0:02:59]}  O-O {[%clk 0:03:01]} 5. h3 {[%clk 0:02:59]}  d6 {[%clk 0:03:01]} 6. Bg5 {[%clk 0:03:00]}  Na6 {[%clk 0:02:52]} 7. Bd3 {[%clk 0:02:59]}  e5 {[%clk 0:02:52]} 8. d5 {[%clk 0:02:59]}  Nc5 {[%clk 0:02:51]} 9. Bc2 {[%clk 0:02:59]}  a5 {[%clk 0:02:51]} 10. Nge2 {[%clk 0:02:59]}  Qe8 {[%clk 0:02:50]} 11. g4 {[%clk 0:02:58]}  c6 {[%clk 0:02:27]} 12. Ng3 {[%clk 0:02:57]}  cxd5 {[%clk 0:02:25]} 13. cxd5 {[%clk 0:02:58]}  b5 {[%clk 0:02:22]} 14. O-O {[%clk 0:02:52]}  Ba6 {[%clk 0:02:19]} 15. f3 {[%clk 0:02:44]}  b4 {[%clk 0:02:18]} 16. Nce2 {[%clk 0:02:44]}  Qb5 {[%clk 0:02:07]} 17. Qd2 {[%clk 0:02:38]}  Rac8 {[%clk 0:02:04]} 18. Rad1 {[%clk 0:02:25]}  b3 {[%clk 0:01:53]} 19. Bb1 {[%clk 0:02:08]}  bxa2 {[%clk 0:01:47]} 20. Bxa2 {[%clk 0:02:09]}  Nd3 {[%clk 0:01:39]} 21. Rb1 {[%clk 0:01:58]}  Nb4 {[%clk 0:01:28]} 22. Bb3 {[%clk 0:01:53]}  Nd3 {[%clk 0:01:27]} 23. Bd1 {[%clk 0:01:44]}  Qb4 {[%clk 0:01:25]} 24. Qxb4 {[%clk 0:01:32]}  axb4 {[%clk 0:01:26]} 25. Ba4 {[%clk 0:01:22]}  Nc5 {[%clk 0:01:23]} 26. Bc6 {[%clk 0:01:22]}  Bd3 {[%clk 0:01:21]} 27. Ra1 {[%clk 0:01:22]}  Rc7 {[%clk 0:01:18]} 28. Rfd1 {[%clk 0:01:18]}  Bc2 {[%clk 0:01:17]} 29. Rf1 {[%clk 0:01:09]}  Nd3 {[%clk 0:01:16]} 30. Ra6 {[%clk 0:01:00]}  Nc5 {[%clk 0:01:14]} 31. Ra5 {[%clk 0:00:54]}  Rfc8 {[%clk 0:01:10]} 32. Be3 {[%clk 0:00:49]}  Nb3 {[%clk 0:01:07]} 33. Rb5 {[%clk 0:00:47]}  Nd4 {[%clk 0:00:54]} 34. Nxd4 {[%clk 0:00:36]}  exd4 {[%clk 0:00:54]} 35. Bxd4 {[%clk 0:00:37]}  Bd3 {[%clk 0:00:54]} 36. Rxb4 {[%clk 0:00:35]}  Bxf1 {[%clk 0:00:53]} 37. Nxf1 {[%clk 0:00:35]}  Nd7 {[%clk 0:00:49]} 38. Bxg7 {[%clk 0:00:29]}  Kxg7 {[%clk 0:00:50]} 39. f4 {[%clk 0:00:19]}  Nc5 {[%clk 0:00:48]} 40. Nd2 {[%clk 0:00:18]}  Nd3 {[%clk 0:00:45]} 41. Rb6 {[%clk 0:00:18]}  Nxf4 {[%clk 0:00:45]} 42. Kh2 {[%clk 0:00:17]}  Re7 {[%clk 0:00:41]} 43. b4 {[%clk 0:00:17]}  Nd3 {[%clk 0:00:40]} 44. b5 {[%clk 0:00:17]}  Nc5 {[%clk 0:00:40]} 45. Kg3 {[%clk 0:00:13]}  Rd8 {[%clk 0:00:26]} 46. Kf3 {[%clk 0:00:12]}  h6 {[%clk 0:00:26]} 47. h4 {[%clk 0:00:11]}  g5 {[%clk 0:00:26]} 48. hxg5 {[%clk 0:00:11]}  hxg5 {[%clk 0:00:27]} 49. Ke3 {[%clk 0:00:11]}  Rh8 {[%clk 0:00:26]} 50. Kd4 {[%clk 0:00:10]}  Rh3 {[%clk 0:00:25]} 51. Kc4 {[%clk 0:00:09]}  Rd3 {[%clk 0:00:23]} 52. e5 {[%clk 0:00:08]}  Rxd2 {[%clk 0:00:19]} 53. exd6 {[%clk 0:00:08]}  Re4+ {[%clk 0:00:19]} 54. Kxc5 {[%clk 0:00:06]}  Rc2# {[%clk 0:00:19]} 0-1


[Site "https://www.chess.com"]

[Event "Titled Tuesday Blitz January 25 2022"]
[White "Obolenskikh, Dmitry"]
[Black "Hasangatin, Ramil"]
[WhiteFideId "4156013"]
[BlackFideId "4122160"]
[WhiteElo "2512"]
[BlackElo "2375"]
[Result "1-0"]
[Round "09"]
[TimeControl "180+1"]
[Date "2022.01.26"]
[WhiteClock "0:00:21"]
[BlackClock "0:00:07"]

1. Nf3 {[%clk 0:02:59]}  d6 {[%clk 0:02:59]} 2. d4 {[%clk 0:02:59]}  Bg4 {[%clk 0:02:58]} 3. e4 {[%clk 0:02:58]}  Nf6 {[%clk 0:02:58]} 4. Nc3 {[%clk 0:02:58]}  e6 {[%clk 0:02:58]} 5. h3 {[%clk 0:02:55]}  Bxf3 {[%clk 0:02:59]} 6. Qxf3 {[%clk 0:02:55]}  c6 {[%clk 0:03:00]} 7. Bd3 {[%clk 0:02:50]}  d5 {[%clk 0:02:59]} 8. e5 {[%clk 0:02:29]}  Nfd7 {[%clk 0:02:58]} 9. Ne2 {[%clk 0:02:29]}  c5 {[%clk 0:02:58]} 10. c3 {[%clk 0:02:29]}  Nc6 {[%clk 0:02:58]} 11. a3 {[%clk 0:02:27]}  Qb6 {[%clk 0:02:53]} 12. Qe3 {[%clk 0:02:19]}  a5 {[%clk 0:02:44]} 13. O-O {[%clk 0:02:12]}  h5 {[%clk 0:02:42]} 14. Kh1 {[%clk 0:02:03]}  g6 {[%clk 0:02:42]} 15. Rb1 {[%clk 0:02:01]}  h4 {[%clk 0:02:33]} 16. b3 {[%clk 0:01:40]}  Be7 {[%clk 0:02:31]} 17. Bd2 {[%clk 0:01:37]}  cxd4 {[%clk 0:02:28]} 18. cxd4 {[%clk 0:01:36]}  Bxa3 {[%clk 0:02:28]} 19. Qf4 {[%clk 0:01:27]}  Be7 {[%clk 0:02:22]} 20. Be3 {[%clk 0:01:25]}  Nb4 {[%clk 0:02:13]} 21. Rfd1 {[%clk 0:01:22]}  Nxd3 {[%clk 0:02:09]} 22. Rxd3 {[%clk 0:01:22]}  Rc8 {[%clk 0:01:48]} 23. Rdd1 {[%clk 0:01:17]}  Kf8 {[%clk 0:01:45]} 24. Ng1 {[%clk 0:01:16]}  Kg7 {[%clk 0:01:43]} 25. Nf3 {[%clk 0:01:15]}  Rh5 {[%clk 0:01:37]} 26. Qg4 {[%clk 0:01:09]}  Qd8 {[%clk 0:01:32]} 27. Rdc1 {[%clk 0:01:08]}  Rc6 {[%clk 0:01:31]} 28. Rxc6 {[%clk 0:01:02]}  bxc6 {[%clk 0:01:32]} 29. Rc1 {[%clk 0:01:03]}  Qb6 {[%clk 0:01:20]} 30. Bg5 {[%clk 0:00:51]}  Bxg5 {[%clk 0:00:55]} 31. Nxg5 {[%clk 0:00:51]}  Rh8 {[%clk 0:00:56]} 32. Qf4 {[%clk 0:00:49]}  Rf8 {[%clk 0:00:47]} 33. Qxh4 {[%clk 0:00:49]}  Rh8 {[%clk 0:00:47]} 34. Qf4 {[%clk 0:00:49]}  Rf8 {[%clk 0:00:47]} 35. Rc3 {[%clk 0:00:49]}  Qd8 {[%clk 0:00:17]} 36. Qxf7+ {[%clk 0:00:26]}  Rxf7 {[%clk 0:00:16]} 37. Nxe6+ {[%clk 0:00:26]}  Kh6 {[%clk 0:00:12]} 38. Nxd8 {[%clk 0:00:27]}  Rxf2 {[%clk 0:00:13]} 39. Nxc6 {[%clk 0:00:27]}  Nf8 {[%clk 0:00:07]} 40. Rf3 {[%clk 0:00:23]}  Rxf3 {[%clk 0:00:06]} 41. gxf3 {[%clk 0:00:24]}  Ne6 {[%clk 0:00:07]} 42. Kg2 {[%clk 0:00:24]}  g5 {[%clk 0:00:07]} 43. Kf2 {[%clk 0:00:22]}  Kh5 {[%clk 0:00:08]} 44. Ke3 {[%clk 0:00:22]}  Kh4 {[%clk 0:00:08]} 45. Nxa5 {[%clk 0:00:22]}  Kxh3 {[%clk 0:00:09]} 46. Nc6 {[%clk 0:00:22]}  Ng7 {[%clk 0:00:08]} 47. Ne7 {[%clk 0:00:20]}  g4 {[%clk 0:00:07]} 48. fxg4 {[%clk 0:00:20]}  Kxg4 {[%clk 0:00:07]} 49. Nxd5 {[%clk 0:00:21]}  Nf5+ {[%clk 0:00:08]} 50. Ke4 {[%clk 0:00:21]}  Ng3+ {[%clk 0:00:07]} 51. Kd3 {[%clk 0:00:21]}  Kf5 {[%clk 0:00:08]} 52. Ne3+ {[%clk 0:00:21]}  Ke6 {[%clk 0:00:09]} 53. b4 {[%clk 0:00:22]}  Nh5 {[%clk 0:00:09]} 54. b5 {[%clk 0:00:22]}  Kd7 {[%clk 0:00:07]} 55. d5 {[%clk 0:00:21]} 1-0


[Site "https://www.chess.com"]

[Event "Titled Tuesday Blitz January 25 2022"]
[White "Papasimakopoulos, Alexandros"]
[Black "Papp, Petra"]
[WhiteFideId "4244125"]
[BlackFideId "739049"]
[WhiteElo "2340"]
[BlackElo "2259"]
[Result "0-1"]
[Round "09"]
[TimeControl "180+1"]
[Date "2022.01.26"]
[WhiteClock "0:00:04"]
[BlackClock "0:00:19"]

1. d4 {[%clk 0:03:00]}  d6 {[%clk 0:02:43]} 2. Nf3 {[%clk 0:02:54]}  f5 {[%clk 0:02:42]} 3. c4 {[%clk 0:02:44]}  Nf6 {[%clk 0:02:41]} 4. Nc3 {[%clk 0:02:44]}  g6 {[%clk 0:02:41]} 5. g3 {[%clk 0:02:44]}  Bg7 {[%clk 0:02:42]} 6. Bg2 {[%clk 0:02:44]}  O-O {[%clk 0:02:42]} 7. O-O {[%clk 0:02:43]}  c6 {[%clk 0:02:42]} 8. d5 {[%clk 0:02:42]}  e5 {[%clk 0:02:40]} 9. dxe6 {[%clk 0:02:42]}  Bxe6 {[%clk 0:02:40]} 10. Bf4 {[%clk 0:02:38]}  Bxc4 {[%clk 0:02:38]} 11. Qxd6 {[%clk 0:02:36]}  Qxd6 {[%clk 0:02:36]} 12. Bxd6 {[%clk 0:02:36]}  Rd8 {[%clk 0:02:31]} 13. Rfd1 {[%clk 0:02:17]}  Na6 {[%clk 0:02:29]} 14. Ne5 {[%clk 0:02:07]}  Be6 {[%clk 0:02:23]} 15. Rac1 {[%clk 0:01:51]}  Nd5 {[%clk 0:02:22]} 16. Nxd5 {[%clk 0:01:49]}  cxd5 {[%clk 0:02:13]} 17. Rxd5 {[%clk 0:01:38]}  Bxe5 {[%clk 0:01:56]} 18. Rxe5 {[%clk 0:01:36]}  Rxd6 {[%clk 0:01:49]} 19. Bxb7 {[%clk 0:01:35]}  Rb8 {[%clk 0:01:42]} 20. Rxe6 {[%clk 0:01:31]}  Rxe6 {[%clk 0:01:38]} 21. Bd5 {[%clk 0:01:31]}  Rb6 {[%clk 0:01:37]} 22. e3 {[%clk 0:00:56]}  Kg7 {[%clk 0:01:36]} 23. Bxe6 {[%clk 0:00:55]}  Rxe6 {[%clk 0:01:37]} 24. a3 {[%clk 0:00:49]}  Re7 {[%clk 0:01:26]} 25. Kf1 {[%clk 0:00:42]}  Rc7 {[%clk 0:01:23]} 26. Rd1 {[%clk 0:00:35]}  Nc5 {[%clk 0:01:22]} 27. Rc1 {[%clk 0:00:30]}  Ne6 {[%clk 0:01:17]} 28. Rd1 {[%clk 0:00:30]}  Kf6 {[%clk 0:01:17]} 29. h4 {[%clk 0:00:24]}  h5 {[%clk 0:01:12]} 30. Kg2 {[%clk 0:00:22]}  Rc2 {[%clk 0:01:11]} 31. Rd7 {[%clk 0:00:20]}  a5 {[%clk 0:01:06]} 32. Ra7 {[%clk 0:00:19]}  Rc5 {[%clk 0:00:57]} 33. Kf3 {[%clk 0:00:16]}  Rb5 {[%clk 0:00:57]} 34. Ra6 {[%clk 0:00:13]}  Rxb2 {[%clk 0:00:48]} 35. Rxa5 {[%clk 0:00:12]}  Rc2 {[%clk 0:00:45]} 36. Ra6 {[%clk 0:00:09]}  Ke5 {[%clk 0:00:45]} 37. Kg2 {[%clk 0:00:07]}  Nc5 {[%clk 0:00:33]} 38. Rxg6 {[%clk 0:00:04]}  Ne4 {[%clk 0:00:33]} 39. Rh6 {[%clk 0:00:04]}  Rxf2+ {[%clk 0:00:32]} 40. Kg1 {[%clk 0:00:05]}  Rf3 {[%clk 0:00:31]} 41. Rxh5 {[%clk 0:00:04]}  Rxg3+ {[%clk 0:00:31]} 42. Kh2 {[%clk 0:00:05]}  Rxe3 {[%clk 0:00:31]} 43. Rh8 {[%clk 0:00:05]}  Rxa3 {[%clk 0:00:29]} 44. h5 {[%clk 0:00:06]}  Nf6 {[%clk 0:00:27]} 45. h6 {[%clk 0:00:05]}  Ng4+ {[%clk 0:00:28]} 46. Kg2 {[%clk 0:00:06]}  Kf4 {[%clk 0:00:24]} 47. h7 {[%clk 0:00:06]}  Ra2+ {[%clk 0:00:22]} 48. Kf1 {[%clk 0:00:06]}  Nf6 {[%clk 0:00:23]} 49. Ke1 {[%clk 0:00:04]}  Ra7 {[%clk 0:00:19]} 0-1


[Site "https://www.chess.com"]

[Event "Titled Tuesday Blitz January 25 2022"]
[White "Papp, Levente"]
[Black "Tarasova, Viktoriya"]
[WhiteFideId "751243"]
[BlackFideId "4175840"]
[WhiteElo "2308"]
[BlackElo "2182"]
[Result "0-1"]
[Round "09"]
[TimeControl "180+1"]
[Date "2022.01.26"]
[WhiteClock "0:01:10"]
[BlackClock "0:01:13"]

1. c4 {[%clk 0:03:00]}  Nf6 {[%clk 0:02:58]} 2. Nc3 {[%clk 0:03:00]}  e5 {[%clk 0:02:58]} 3. e3 {[%clk 0:02:59]}  Bb4 {[%clk 0:02:57]} 4. Nge2 {[%clk 0:02:59]}  c6 {[%clk 0:02:52]} 5. a3 {[%clk 0:02:57]}  Be7 {[%clk 0:02:50]} 6. d4 {[%clk 0:02:54]}  exd4 {[%clk 0:02:49]} 7. exd4 {[%clk 0:02:54]}  d5 {[%clk 0:02:49]} 8. Ng3 {[%clk 0:02:49]}  O-O {[%clk 0:02:48]} 9. cxd5 {[%clk 0:02:28]}  cxd5 {[%clk 0:02:47]} 10. Be2 {[%clk 0:02:26]}  Re8 {[%clk 0:02:47]} 11. O-O {[%clk 0:02:26]}  Nc6 {[%clk 0:02:47]} 12. Be3 {[%clk 0:02:19]}  a6 {[%clk 0:02:39]} 13. Rc1 {[%clk 0:02:18]}  h6 {[%clk 0:02:35]} 14. Qd2 {[%clk 0:02:03]}  Bf8 {[%clk 0:02:34]} 15. f3 {[%clk 0:01:59]}  Bd7 {[%clk 0:02:25]} 16. Bd3 {[%clk 0:01:54]}  Rc8 {[%clk 0:02:21]} 17. b4 {[%clk 0:01:54]}  Na7 {[%clk 0:01:57]} 18. Bf4 {[%clk 0:01:45]}  Qb6 {[%clk 0:01:56]} 19. Kh1 {[%clk 0:01:38]}  Nb5 {[%clk 0:01:51]} 20. Nxb5 {[%clk 0:01:34]}  Bxb5 {[%clk 0:01:51]} 21. Nf5 {[%clk 0:01:31]}  Bxd3 {[%clk 0:01:46]} 22. Qxd3 {[%clk 0:01:32]}  Qe6 {[%clk 0:01:36]} 23. Rxc8 {[%clk 0:01:24]}  Rxc8 {[%clk 0:01:35]} 24. Bd2 {[%clk 0:01:10]}  Qc6 {[%clk 0:01:18]} 25. Rc1 {[%clk 0:01:10]}  Qxc1+ {[%clk 0:01:13]} 0-1


[Site "https://www.chess.com"]

[Event "Titled Tuesday Blitz January 25 2022"]
[White "Pesotskiy, Mikhail"]
[Black "Khripachenko, Alexander"]
[WhiteFideId "34164453"]
[BlackFideId "54184975"]
[WhiteElo "2010"]
[BlackElo "2177"]
[Result "0-1"]
[Round "09"]
[TimeControl "180+1"]
[Date "2022.01.26"]
[WhiteClock "0:00:00"]
[BlackClock "0:01:23"]

1. d4 {[%clk 0:02:58]}  Nf6 {[%clk 0:03:00]} 2. c4 {[%clk 0:02:59]}  g6 {[%clk 0:03:00]} 3. Nc3 {[%clk 0:02:59]}  d5 {[%clk 0:02:57]} 4. Bg5 {[%clk 0:02:59]}  Ne4 {[%clk 0:02:54]} 5. Nxe4 {[%clk 0:02:59]}  dxe4 {[%clk 0:02:55]} 6. Qd2 {[%clk 0:03:00]}  Bg7 {[%clk 0:02:55]} 7. e3 {[%clk 0:03:01]}  c5 {[%clk 0:02:56]} 8. d5 {[%clk 0:03:00]}  Qb6 {[%clk 0:02:56]} 9. Rb1 {[%clk 0:02:59]}  h6 {[%clk 0:02:53]} 10. Bh4 {[%clk 0:02:58]}  g5 {[%clk 0:02:52]} 11. Bg3 {[%clk 0:02:58]}  e6 {[%clk 0:02:53]} 12. Ne2 {[%clk 0:02:57]}  exd5 {[%clk 0:02:53]} 13. cxd5 {[%clk 0:02:58]}  O-O {[%clk 0:02:43]} 14. Nc3 {[%clk 0:02:59]}  Bf5 {[%clk 0:02:43]} 15. h4 {[%clk 0:02:48]}  Nd7 {[%clk 0:02:42]} 16. Be2 {[%clk 0:02:25]}  Rad8 {[%clk 0:02:37]} 17. hxg5 {[%clk 0:01:39]}  hxg5 {[%clk 0:02:37]} 18. Rh5 {[%clk 0:01:35]}  Qg6 {[%clk 0:02:36]} 19. Kd1 {[%clk 0:01:10]}  Ne5 {[%clk 0:02:35]} 20. Kc2 {[%clk 0:01:11]}  Nd3 {[%clk 0:02:31]} 21. Rbh1 {[%clk 0:01:11]}  b5 {[%clk 0:02:31]} 22. Bxd3 {[%clk 0:01:04]}  exd3+ {[%clk 0:02:31]} 23. Kc1 {[%clk 0:01:04]}  b4 {[%clk 0:02:31]} 24. Nd1 {[%clk 0:00:31]}  Bg4 {[%clk 0:02:07]} 25. R5h2 {[%clk 0:00:23]}  Rxd5 {[%clk 0:02:08]} 26. f3 {[%clk 0:00:20]}  Be6 {[%clk 0:02:07]} 27. e4 {[%clk 0:00:21]}  Rd7 {[%clk 0:02:06]} 28. Ne3 {[%clk 0:00:16]}  c4 {[%clk 0:02:01]} 29. Qxb4 {[%clk 0:00:16]}  c3 {[%clk 0:02:02]} 30. bxc3 {[%clk 0:00:13]}  Rc8 {[%clk 0:02:02]} 31. c4 {[%clk 0:00:04]}  d2+ {[%clk 0:01:34]} 32. Kd1 {[%clk 0:00:03]}  Qf6 {[%clk 0:01:34]} 33. Ke2 {[%clk 0:00:02]}  Qd4 {[%clk 0:01:34]} 34. Rd1 {[%clk 0:00:01]}  Qd3+ {[%clk 0:01:34]} 35. Kf2 {[%clk 0:00:02]}  Bd4 {[%clk 0:01:30]} 36. Qxd2 {[%clk 0:00:01]}  Bxe3+ {[%clk 0:01:22]} 37. Qxe3 {[%clk 0:00:02]}  Qxe3+ {[%clk 0:01:22]} 38. Kxe3 {[%clk 0:00:00]}  Rxd1 {[%clk 0:01:23]} 0-1


[Site "https://www.chess.com"]

[Event "Titled Tuesday Blitz January 25 2022"]
[White "Petrovskyi, Vadym"]
[Black "Gerasimenyuk, Mikhail"]
[WhiteFideId "14165210"]
[BlackFideId "14111845"]
[WhiteElo "2424"]
[BlackElo "2181"]
[Result "1-0"]
[Round "09"]
[TimeControl "180+1"]
[Date "2022.01.26"]
[WhiteClock "0:00:06"]
[BlackClock "0:00:09"]

1. e4 {[%clk 0:03:00]}  d5 {[%clk 0:02:59]} 2. exd5 {[%clk 0:03:00]}  Qxd5 {[%clk 0:03:00]} 3. Nc3 {[%clk 0:03:00]}  Qa5 {[%clk 0:02:59]} 4. d4 {[%clk 0:03:00]}  Nf6 {[%clk 0:02:59]} 5. Nf3 {[%clk 0:03:00]}  Bg4 {[%clk 0:02:59]} 6. h3 {[%clk 0:03:00]}  Qh5 {[%clk 0:02:59]} 7. hxg4 {[%clk 0:02:29]}  Qxh1 {[%clk 0:03:00]} 8. Ne2 {[%clk 0:02:29]}  g5 {[%clk 0:03:00]} 9. Bxg5 {[%clk 0:02:05]}  Ne4 {[%clk 0:02:59]} 10. Bf4 {[%clk 0:01:57]}  Nc6 {[%clk 0:02:41]} 11. Qd3 {[%clk 0:01:55]}  f5 {[%clk 0:02:35]} 12. gxf5 {[%clk 0:01:50]}  Nxf2 {[%clk 0:02:15]} 13. Kxf2 {[%clk 0:01:48]}  Qh5 {[%clk 0:02:13]} 14. d5 {[%clk 0:01:43]}  O-O-O {[%clk 0:02:13]} 15. Qe4 {[%clk 0:01:38]}  e5 {[%clk 0:01:56]} 16. Be3 {[%clk 0:01:01]}  Ne7 {[%clk 0:01:32]} 17. Ng3 {[%clk 0:01:01]}  Qe8 {[%clk 0:01:26]} 18. c4 {[%clk 0:01:01]}  Bg7 {[%clk 0:01:19]} 19. Rc1 {[%clk 0:00:48]}  Rf8 {[%clk 0:01:19]} 20. Bd3 {[%clk 0:00:47]}  h5 {[%clk 0:01:17]} 21. Kg1 {[%clk 0:00:42]}  Bf6 {[%clk 0:01:17]} 22. b4 {[%clk 0:00:40]}  Rg8 {[%clk 0:01:13]} 23. Ne2 {[%clk 0:00:36]}  Rg4 {[%clk 0:01:10]} 24. Bf4 {[%clk 0:00:25]}  Qg8 {[%clk 0:00:51]} 25. Nxe5 {[%clk 0:00:24]}  Bxe5 {[%clk 0:00:47]} 26. Qxe5 {[%clk 0:00:25]}  Rxg2+ {[%clk 0:00:47]} 27. Kf1 {[%clk 0:00:20]}  Rd7 {[%clk 0:00:45]} 28. f6 {[%clk 0:00:20]}  Ng6 {[%clk 0:00:38]} 29. Bxg6 {[%clk 0:00:11]}  Qxg6 {[%clk 0:00:39]} 30. c5 {[%clk 0:00:09]}  Qg4 {[%clk 0:00:19]} 31. c6 {[%clk 0:00:06]}  bxc6 {[%clk 0:00:16]} 32. Qe8+ {[%clk 0:00:06]}  Rd8 {[%clk 0:00:15]} 33. Qe6+ {[%clk 0:00:06]}  Qxe6 {[%clk 0:00:14]} 34. dxe6 {[%clk 0:00:06]}  Rg6 {[%clk 0:00:13]} 35. Be5 {[%clk 0:00:05]}  Rd5 {[%clk 0:00:12]} 36. Nf4 {[%clk 0:00:05]}  Rxe5 {[%clk 0:00:10]} 37. Nxg6 {[%clk 0:00:05]}  Rf5+ {[%clk 0:00:10]} 38. Ke2 {[%clk 0:00:04]}  Rxf6 {[%clk 0:00:10]} 39. Rxc6 {[%clk 0:00:04]}  Kb7 {[%clk 0:00:10]} 40. Ne5 {[%clk 0:00:03]}  Rf5 {[%clk 0:00:09]} 41. Rc5 {[%clk 0:00:03]}  Rf6 {[%clk 0:00:10]} 42. Rc6 {[%clk 0:00:02]}  Rf5 {[%clk 0:00:10]} 43. Rc5 {[%clk 0:00:03]}  a6 {[%clk 0:00:10]} 44. Kd3 {[%clk 0:00:04]}  Rf6 {[%clk 0:00:10]} 45. Rc6 {[%clk 0:00:04]}  Rf4 {[%clk 0:00:10]} 46. a3 {[%clk 0:00:04]}  a5 {[%clk 0:00:09]} 47. bxa5 {[%clk 0:00:03]}  Rf5 {[%clk 0:00:09]} 48. a6+ {[%clk 0:00:04]}  Ka7 {[%clk 0:00:09]} 49. Ke4 {[%clk 0:00:05]}  Rf1 {[%clk 0:00:09]} 50. e7 {[%clk 0:00:06]}  Re1+ {[%clk 0:00:09]} 51. Kf5 {[%clk 0:00:06]}  h4 {[%clk 0:00:08]} 52. e8=Q {[%clk 0:00:06]}  Rf1+ {[%clk 0:00:09]} 53. Ke6 {[%clk 0:00:06]} 1-0


[Site "https://www.chess.com"]

[Event "Titled Tuesday Blitz January 25 2022"]
[White "Piorun, Kacper"]
[Black "Aradhya, Garg"]
[WhiteFideId "1130420"]
[BlackFideId "25006746"]
[WhiteElo "2571"]
[BlackElo "2169"]
[Result "1-0"]
[Round "09"]
[TimeControl "180+1"]
[Date "2022.01.26"]
[WhiteClock "0:00:11"]
[BlackClock "0:00:04"]

1. c4 {[%clk 0:03:00]}  e5 {[%clk 0:02:58]} 2. g3 {[%clk 0:03:00]}  Nf6 {[%clk 0:02:57]} 3. Bg2 {[%clk 0:03:00]}  Nc6 {[%clk 0:02:57]} 4. Nc3 {[%clk 0:03:00]}  g6 {[%clk 0:02:57]} 5. e4 {[%clk 0:03:00]}  Bg7 {[%clk 0:02:57]} 6. Nge2 {[%clk 0:03:00]}  d6 {[%clk 0:02:56]} 7. O-O {[%clk 0:03:00]}  O-O {[%clk 0:02:56]} 8. d3 {[%clk 0:03:01]}  Be6 {[%clk 0:02:54]} 9. Nd5 {[%clk 0:03:01]}  Nd7 {[%clk 0:02:45]} 10. Be3 {[%clk 0:02:56]}  Ne7 {[%clk 0:02:42]} 11. Qd2 {[%clk 0:02:51]}  c6 {[%clk 0:02:41]} 12. Nxe7+ {[%clk 0:02:39]}  Qxe7 {[%clk 0:02:42]} 13. b3 {[%clk 0:02:39]}  Rfd8 {[%clk 0:02:29]} 14. Rae1 {[%clk 0:02:35]}  a5 {[%clk 0:02:28]} 15. f4 {[%clk 0:02:35]}  f6 {[%clk 0:02:26]} 16. f5 {[%clk 0:02:31]}  Bf7 {[%clk 0:02:26]} 17. g4 {[%clk 0:02:31]}  d5 {[%clk 0:02:10]} 18. exd5 {[%clk 0:02:25]}  cxd5 {[%clk 0:02:11]} 19. cxd5 {[%clk 0:02:25]}  Qb4 {[%clk 0:02:11]} 20. h3 {[%clk 0:01:37]}  Qxd2 {[%clk 0:02:04]} 21. Bxd2 {[%clk 0:01:37]}  Nb6 {[%clk 0:02:05]} 22. Nc3 {[%clk 0:01:14]}  Nxd5 {[%clk 0:02:05]} 23. Ne4 {[%clk 0:01:15]}  gxf5 {[%clk 0:02:01]} 24. Rxf5 {[%clk 0:01:11]}  Be6 {[%clk 0:01:49]} 25. Rf2 {[%clk 0:01:07]}  b6 {[%clk 0:01:33]} 26. Ng3 {[%clk 0:00:46]}  Rac8 {[%clk 0:01:32]} 27. Nh5 {[%clk 0:00:45]}  Rd6 {[%clk 0:01:17]} 28. d4 {[%clk 0:00:43]}  Bh8 {[%clk 0:00:59]} 29. dxe5 {[%clk 0:00:35]}  fxe5 {[%clk 0:00:59]} 30. Ref1 {[%clk 0:00:29]}  Ne7 {[%clk 0:00:37]} 31. Bh6 {[%clk 0:00:27]}  Ng6 {[%clk 0:00:36]} 32. Nf6+ {[%clk 0:00:27]}  Bxf6 {[%clk 0:00:36]} 33. Rxf6 {[%clk 0:00:27]}  Rcd8 {[%clk 0:00:29]} 34. Be4 {[%clk 0:00:22]}  Bd5 {[%clk 0:00:27]} 35. Rxd6 {[%clk 0:00:12]}  Rxd6 {[%clk 0:00:25]} 36. Rd1 {[%clk 0:00:12]}  Ne7 {[%clk 0:00:16]} 37. Bg5 {[%clk 0:00:12]}  Bxe4 {[%clk 0:00:12]} 38. Rxd6 {[%clk 0:00:12]}  Nd5 {[%clk 0:00:13]} 39. Rd7 {[%clk 0:00:10]}  Nb4 {[%clk 0:00:09]} 40. Bh6 {[%clk 0:00:10]}  Nxa2 {[%clk 0:00:04]} 41. Rg7+ {[%clk 0:00:10]}  Kf8 {[%clk 0:00:01]} 42. Rxh7+ {[%clk 0:00:10]}  Ke8 {[%clk 0:00:02]} 43. Rg7 {[%clk 0:00:10]}  Nc1 {[%clk 0:00:01]} 44. Bg5 {[%clk 0:00:11]}  Nxb3 {[%clk 0:00:01]} 45. Re7+ {[%clk 0:00:11]}  Kf8 {[%clk 0:00:01]} 46. Rxe5 {[%clk 0:00:12]}  Bg6 {[%clk 0:00:01]} 47. h4 {[%clk 0:00:12]}  Nd4 {[%clk 0:00:02]} 48. Kf2 {[%clk 0:00:12]}  Bf7 {[%clk 0:00:02]} 49. h5 {[%clk 0:00:12]}  Nc6 {[%clk 0:00:01]} 50. Re3 {[%clk 0:00:12]}  a4 {[%clk 0:00:02]} 51. Kg3 {[%clk 0:00:12]}  Bb3 {[%clk 0:00:02]} 52. h6 {[%clk 0:00:08]}  Kg8 {[%clk 0:00:03]} 53. Bf6 {[%clk 0:00:08]}  Kh7 {[%clk 0:00:03]} 54. g5 {[%clk 0:00:09]}  b5 {[%clk 0:00:03]} 55. Rc3 {[%clk 0:00:09]}  Nb4 {[%clk 0:00:03]} 56. Rc7+ {[%clk 0:00:09]}  Kg6 {[%clk 0:00:03]} 57. h7 {[%clk 0:00:09]}  Nd5 {[%clk 0:00:03]} 58. Rg7+ {[%clk 0:00:09]}  Kf5 {[%clk 0:00:03]} 59. h8=Q {[%clk 0:00:10]}  Nxf6 {[%clk 0:00:03]} 60. gxf6 {[%clk 0:00:10]}  Kxf6 {[%clk 0:00:04]} 61. Qh6+ {[%clk 0:00:10]}  Kf5 {[%clk 0:00:04]} 62. Qf4+ {[%clk 0:00:10]}  Ke6 {[%clk 0:00:04]} 63. Rg6+ {[%clk 0:00:10]}  Kd5 {[%clk 0:00:04]} 64. Rd6+ {[%clk 0:00:10]}  Kc5 {[%clk 0:00:04]} 65. Qd4# {[%clk 0:00:11]} 1-0


[Site "https://www.chess.com"]